bitfinex-derivatives/quotes_SOLF0:USTF0_20250421
["timestamp","ask_amount","ask_price","bid_price","bid_amount"]
[1745268429736,0.05436414,137.28,137.26,45.63577589]
[1745268429932,0.05436414,137.28,137.26,38.35067589]
[1745268430436,0.05436414,137.28,137.26,45.63557589]
[1745268430736,7.33866414,137.28,137.26,45.63557589]
[1745268430937,0.05436414,137.28,137.26,26.38]
[1745268431237,0.05436414,137.28,137.24,19.30344515]
[1745268431238,11.97067589,137.27,137.24,0.04676926]
[1745268431435,11.97067589,137.26,137.24,0.04676926]
[1745268431635,7.2857,137.26,137.24,0.04676926]
[1745268432238,7.2858,137.25,137.24,0.04676926]
[1745268434943,7.2856,137.26,137.24,0.04676926]
[1745268435336,0.05436414,137.28,137.24,12.01744515]
[1745268435543,7.285,137.27,137.24,19.30354515]
[1745268435841,0.05436414,137.28,137.25,11.97067589]
[1745268436238,0.05436414,137.28,137.27,11.97067589]
[1745268436438,2.1009,137.3,137.27,11.97067589]
[1745268436638,9.3479,137.31,137.28,19.25447589]
[1745268437640,2.0652,137.31,137.29,7.2836]
[1745268438442,2.0652,137.31,137.3,7.2831]
[1745268438941,19.25247589,137.33,137.3,7.2831]
[1745268439441,7.2818,137.33,137.3,19.25377589]
[1745268439642,23.25697589,137.34,137.31,7.2824]
[1745268440039,7.2813,137.34,137.31,7.33682379]
[1745268440239,9.2772,137.35,137.32,7.2821]
[1745268440443,13.96717589,137.35,137.31,12.02509968]
[1745268440743,13.96717589,137.35,137.31,0.05442379]
[1745268441143,7.2813,137.34,137.31,0.05442379]
[1745268441943,7.2813,137.34,137.32,7.282]
[1745268442138,7.2813,137.34,137.31,0.05442379]
[1745268442444,7.2813,137.34,137.31,7.33672379]
[1745268442643,7.2816,137.33,137.31,7.33672379]
[1745268442834,13.96717589,137.35,137.31,7.33672379]
[1745268443141,7.2813,137.34,137.31,7.33672379]
[1745268443546,1.9965,137.35,137.32,7.2819]
[1745268443844,9.2773,137.35,137.32,19.25257589]
[1745268444044,30.2775,137.38,137.34,11.97067589]
[1745268444234,3.8975,137.38,137.34,11.97067589]
[1745268444435,7.2797,137.37,137.35,0.05550058]
[1745268444842,3.8975,137.38,137.35,0.05550058]
[1745268445043,11.1765,137.38,137.35,0.05550058]
[1745268445646,3.8975,137.38,137.35,7.33570058]
[1745268446847,7.2792,137.38,137.35,7.33570058]
[1745268448150,7.2795,137.37,137.35,0.05550058]
[1745268449157,19.24987589,137.38,137.35,0.05550058]
[1745268449344,11.97067589,137.36,137.32,33.6618]
[1745268449544,11.97067589,137.35,137.32,26.38]
[1745268449739,11.97067589,137.34,137.32,26.38]
[1745268450250,7.2811,137.34,137.32,26.38]
[1745268450445,7.33329678,137.34,137.32,26.43132997]
[1745268452048,7.2815,137.33,137.32,26.43132997]
[1745268452248,12.02287267,137.34,137.32,26.43132997]
[1745268452554,12.02287267,137.34,137.32,0.05132997]
[1745268452755,19.30417267,137.34,137.32,0.05132997]
[1745268453352,7.2815,137.33,137.32,0.05132997]
[1745268453653,12.02287267,137.34,137.32,0.05132997]
[1745268453953,19.30437267,137.34,137.32,0.05132997]
[1745268454953,19.25217589,137.33,137.32,0.05132997]
[1745268455955,7.2815,137.33,137.32,0.05132997]
[1745268457754,19.25217589,137.33,137.32,0.05132997]
[1745268459453,7.2815,137.33,137.32,0.05132997]
[1745268459655,0.05219678,137.34,137.32,0.05132997]
[1745268459953,0.05219678,137.34,137.32,12.02200586]
[1745268460255,0.05219678,137.34,137.32,7.33312997]
[1745268461850,11.97067589,137.33,137.29,26.36]
[1745268462154,7.2837,137.29,137.26,33.6448]
[1745268462353,19.25437589,137.29,137.26,33.6448]
[1745268462754,19.25437589,137.29,137.27,7.2847]
[1745268463055,19.30229539,137.29,137.27,0.04993313]
[1745268464951,19.25487589,137.28,137.27,0.04993313]
[1745268465754,7.2858,137.25,137.24,26.36]
[1745268467358,11.97067589,137.25,137.23,0.04770734]
[1745268467551,0.05538356,137.26,137.23,0.04770734]
[1745268467552,11.97067589,137.24,137.23,0.04770734]
[1745268467759,11.97067589,137.24,137.21,26.36]
[1745268467950,7.2874,137.22,137.21,26.36]
[1745268468361,14.01777589,137.25,137.2,11.97067589]
[1745268468559,2.0471,137.25,137.22,11.97067589]
[1745268468762,11.97067589,137.24,137.21,26.36]
[1745268469058,19.25747589,137.24,137.22,0.05016498]
[1745268469759,11.97067589,137.23,137.22,0.05016498]
[1745268470361,11.97067589,137.24,137.22,0.05016498]
[1745268470565,19.25727589,137.24,137.22,0.05016498]
[1745268471358,11.97067589,137.24,137.22,7.33746498]
[1745268471563,2.10021072,137.25,137.22,0.05016498]
[1745268471860,0.05311072,137.25,137.22,12.02084087]
[1745268472055,0.05311072,137.25,137.24,7.2863]
[1745268472253,0.05311072,137.25,137.24,19.25697589]
[1745268472454,11.97067589,137.29,137.24,38.33067589]
[1745268472655,19.25457589,137.29,137.26,7.285]
[1745268472961,14.05487589,137.3,137.25,11.97067589]
[1745268473163,1.9867,137.32,137.27,11.97067589]
[1745268473366,13.95737589,137.32,137.28,11.97067589]
[1745268473553,11.97067589,137.31,137.27,26.36]
[1745268473754,11.97067589,137.3,137.29,0.04710096]
[1745268474258,19.25407589,137.3,137.29,0.04710096]
[1745268475360,19.30834098,137.31,137.29,0.04710096]
[1745268475664,7.33766509,137.31,137.29,0.04710096]
[1745268475865,0.05486509,137.31,137.29,0.04710096]
[1745268476060,12.02554098,137.31,137.29,0.04710096]
[1745268476565,7.2831,137.3,137.29,0.04710096]
[1745268476767,19.25377589,137.3,137.29,0.04710096]
[1745268477867,7.2841,137.29,137.27,26.36]
[1745268478070,11.97067589,137.29,137.25,19.25617589]
[1745268478261,11.97067589,137.29,137.25,7.2855]
[1745268478662,7.2846,137.28,137.25,7.2855]
[1745268479073,7.3385902,137.28,137.25,7.33537053]
[1745268480068,7.2849,137.27,137.25,0.04987053]
[1745268480269,11.97067589,137.27,137.25,0.04987053]
[1745268480572,11.97067589,137.26,137.21,33.6478]
[1745268480769,11.97067589,137.25,137.21,26.36]
[1745268481070,7.2868,137.24,137.21,26.36]
[1745268481573,7.33964156,137.24,137.21,33.70315412]
[1745268482174,0.05284156,137.24,137.22,11.97067589]
[1745268482473,0.05284156,137.24,137.23,11.97067589]
[1745268482674,0.05284156,137.24,137.23,19.25747589]
[1745268483181,0.05284156,137.24,137.23,11.97067589]
[1745268484174,0.05284156,137.24,137.23,19.25747589]
[1745268485278,0.05284156,137.24,137.23,7.2868]
[1745268486075,20.65051378,137.3,137.21,45.1260679]
[1745268486273,22.72671378,137.3,137.21,45.07081378]
[1745268486776,22.72671378,137.3,137.24,7.2859]
[1745268487172,0.05192318,137.28,137.26,0.05321571]
[1745268487671,7.2848,137.27,137.26,0.05321571]
[1745268487969,26.36,137.27,137.18,26.36]
[1745268488169,18.71081378,137.24,137.18,26.36]
[1745268488374,18.71081378,137.22,137.18,26.36]
[1745268488573,7.2887,137.2,137.18,26.36]
[1745268488777,18.71081378,137.22,137.18,26.36]
[1745268489277,0.05400161,137.21,137.19,0.04841678]
[1745268490680,0.05400161,137.21,137.2,7.2884]
[1745268493387,0.05400161,137.21,137.19,0.04841678]
[1745268493984,0.05400161,137.21,137.2,7.2884]
[1745268499086,1.954,137.26,137.22,7.2869]
[1745268499493,7.286,137.25,137.22,7.2869]
[1745268500085,7.286,137.25,137.22,7.33512831]
[1745268500386,7.34086299,137.25,137.22,7.33512831]
[1745268503092,7.2864,137.24,137.22,0.04822831]
[1745268503391,0.05486299,137.25,137.22,0.04822831]
[1745268503586,7.2863,137.24,137.22,0.04822831]
[1745268504091,7.2868,137.23,137.22,0.04822831]
[1745268504286,0.05486299,137.25,137.22,0.04822831]
[1745268504793,7.2868,137.23,137.22,0.04822831]
[1745268505689,7.2865,137.24,137.22,7.33552831]
[1745268509087,7.2865,137.24,137.09,1.26838336]
[1745268509088,36.4449,137.22,137.09,1.26838336]
[1745268509386,36.4449,137.22,137.14,11.98072322]
[1745268509593,11.98072322,137.2,137.14,11.98072322]
[1745268509884,11.98072322,137.21,137.16,11.98072322]
[1745268510089,11.98072322,137.21,137.15,11.98072322]
[1745268510289,0.04625235,137.2,137.17,0.04607909]
[1745268510689,7.2896,137.18,137.17,0.04607909]
[1745268510990,12.05216324,137.18,137.17,0.04607909]
[1745268514190,12.0481205,137.18,137.17,0.04607909]
[1745268516888,12.0447482,137.18,137.17,0.04607909]
[1745268517192,0.04625235,137.2,137.17,12.02680231]
[1745268517492,0.04625235,137.2,137.19,11.98072322]
[1745268518188,13.93472322,137.26,137.21,7.2877]
[1745268518389,4.75280595,137.25,137.23,11.98072322]
[1745268518689,7.2855,137.26,137.22,38.34072322]
[1745268519389,0.05598033,137.25,137.23,0.05611789]
[1745268519790,7.34178033,137.25,137.23,0.05611789]
[1745268521395,0.05598033,137.25,137.23,7.34281789]
[1745268521893,0.05598033,137.25,137.23,0.05611789]
[1745268522699,0.05598033,137.25,137.23,7.34251789]
[1745268523193,0.05598033,137.25,137.24,7.2863]
[1745268524297,0.05598033,137.25,137.23,19.32344111]
[1745268524495,0.05598033,137.25,137.23,7.34271789]
[1745268525097,0.05598033,137.25,137.23,0.05611789]
[1745268526499,7.34188033,137.25,137.23,0.05611789]
[1745268527298,0.05598033,137.25,137.23,0.05611789]
[1745268527597,0.05598033,137.25,137.23,7.34291789]
[1745268528298,0.05598033,137.25,137.23,0.05611789]
[1745268528699,0.05598033,137.25,137.23,7.34291789]
[1745268529398,0.05598033,137.25,137.24,7.2863]
[1745268529598,4.81575251,137.25,137.24,7.2863]
[1745268529798,4.81575251,137.25,137.23,0.05611789]
[1745268530098,0.05598033,137.25,137.23,0.05611789]
[1745268531201,0.05598033,137.25,137.24,7.2863]
[1745268531399,4.81600969,137.25,137.24,7.2863]
[1745268531898,4.81598036,137.25,137.24,7.2863]
[1745268533601,0.05598033,137.25,137.24,7.2863]
[1745268537301,0.05598033,137.25,137.23,7.34281789]
[1745268537902,0.05598033,137.25,137.24,7.2863]
[1745268538097,4.81420152,137.25,137.24,7.2863]
[1745268539199,4.81420152,137.25,137.23,19.32344111]
[1745268539405,0.05598033,137.25,137.23,0.05611789]
[1745268539904,0.05598033,137.25,137.23,7.34261789]
[1745268540303,7.34178033,137.25,137.23,0.05611789]
[1745268541905,4.7572143,137.24,137.23,0.05611789]
[1745268542306,7.34178033,137.25,137.23,0.05611789]
[1745268542905,4.7571117,137.24,137.23,0.05611789]
[1745268543606,12.0434117,137.24,137.23,0.05611789]
[1745268544498,4.7571117,137.24,137.23,0.05611789]
[1745268544706,7.34198033,137.25,137.23,0.05611789]
[1745268545909,7.2863,137.24,137.23,0.05611789]
[1745268548310,7.34198033,137.25,137.23,0.05611789]
[1745268548509,7.34198033,137.25,137.23,7.34291789]
[1745268551808,0.05598033,137.25,137.24,7.2863]
[1745268553012,0.05598033,137.25,137.24,19.26702322]
[1745268553212,12.03670355,137.25,137.23,0.05611789]
[1745268553510,19.26702322,137.24,137.23,0.05611789]
[1745268554207,11.98072322,137.24,137.16,11.98072322]
[1745268554408,11.98072322,137.19,137.17,26.34]
[1745268554607,11.98072322,137.19,137.14,38.32072322]
[1745268554911,11.98072322,137.19,137.15,7.2908]
[1745268555108,19.27092322,137.17,137.15,7.2908]
[1745268555310,11.98072322,137.16,137.12,11.98072322]
[1745268555505,11.98072322,137.16,137.15,0.04837401]
[1745268555703,19.27072322,137.17,137.15,0.04837401]
[1745268556407,7.2906,137.16,137.15,0.04837401]
[1745268557811,19.27132322,137.16,137.15,0.04837401]
[1745268558720,11.98072322,137.16,137.09,26.36]
[1745268558913,11.98072322,137.13,137.09,26.36]
[1745268559214,11.98072322,137.12,137.09,26.36]
[1745268559615,11.98072322,137.12,137.1,7.2937]
[1745268559814,0.05075896,137.12,137.09,26.40846331]
[1745268560013,0.05075896,137.12,137.09,38.38918653]
[1745268560215,0.05075896,137.12,137.1,7.2938]
[1745268561016,0.05075896,137.12,137.11,7.2932]
[1745268563019,0.05075896,137.12,137.1,19.27422322]
[1745268564218,0.05075896,137.12,137.11,7.2932]
[1745268565821,0.05075896,137.12,137.1,19.27422322]
[1745268566422,0.05075896,137.12,137.11,7.2932]
[1745268570131,0.05075896,137.12,137.11,19.27392322]
[1745268570333,11.98072322,137.18,137.11,11.98072322]
[1745268570630,11.98072322,137.18,137.09,26.40846331]
[1745268570631,7.2905,137.17,137.13,11.98072322]
[1745268570825,7.2905,137.17,137.13,19.27252322]
[1745268571026,11.98072322,137.18,137.13,19.27252322]
[1745268571321,7.2903,137.17,137.14,0.04731947]
[1745268571633,11.98072322,137.15,137.14,0.04731947]
[1745268572030,19.27182322,137.15,137.14,0.04731947]
[1745268572230,11.98072322,137.15,137.09,38.34072322]
[1745268572533,19.27422322,137.11,137.07,7.2951]
[1745268573226,11.98072322,137.11,137.08,7.2946]
[1745268573425,0.0475878,137.1,137.08,7.34377433]
[1745268576335,0.0475878,137.1,137.09,7.2943]
[1745268577839,0.0475878,137.1,137.08,7.34367433]
[1745268578339,0.0475878,137.1,137.09,7.2943]
[1745268578539,0.0475878,137.1,137.09,19.27502322]
[1745268578740,11.98072322,137.15,137.11,11.98072322]
[1745268578933,14.04412322,137.16,137.11,11.98072322]
[1745268579134,11.98072322,137.15,137.1,11.98072322]
[1745268579339,7.2919,137.14,137.1,11.98072322]
[1745268579738,0.04940232,137.13,137.11,0.05170118]
[1745268580237,0.04940232,137.13,137.11,7.34470118]
[1745268584043,19.27342322,137.12,137.11,0.05170118]
[1745268586442,7.2927,137.12,137.11,0.05170118]
[1745268586947,7.34180232,137.13,137.11,0.05170118]
[1745268587338,7.2927,137.12,137.11,0.05170118]
[1745268588949,0.04940232,137.13,137.11,19.3255244]
[1745268589143,0.04940232,137.13,137.11,12.0324244]
[1745268589646,0.04940232,137.13,137.11,19.3252244]
[1745268589947,0.04940232,137.13,137.11,0.05170118]
[1745268590145,7.34170232,137.13,137.11,0.05170118]
[1745268593048,7.2927,137.12,137.11,0.05170118]
[1745268594749,7.34180232,137.13,137.11,0.05170118]
[1745268600853,7.34180232,137.13,137.11,7.34490118]
[1745268601354,7.34180232,137.13,137.11,0.05170118]
[1745268601549,0.04940232,137.13,137.11,0.05170118]
[1745268601852,0.04940232,137.13,137.12,7.2927]
[1745268603454,0.04940232,137.13,137.11,0.05170118]
[1745268604255,7.34180232,137.13,137.11,0.05170118]
[1745268605553,7.34180232,137.13,137.11,7.34480118]
[1745268605856,0.04940232,137.13,137.11,0.05170118]
[1745268606347,0.04940232,137.13,137.12,7.2927]
[1745268607758,0.04940232,137.13,137.11,7.34460118]
[1745268608859,0.04940232,137.13,137.12,7.2927]
[1745268609554,26.36,137.2,137.12,18.74657162]
[1745268609764,26.36,137.2,137.14,18.74657162]
[1745268610063,7.2887,137.2,137.17,7.2898]
[1745268610762,7.33652859,137.2,137.17,7.34556729]
[1745268611066,7.2895,137.18,137.17,0.05576729]
[1745268611258,19.28294325,137.18,137.17,0.05576729]
[1745268612061,7.2895,137.18,137.17,0.05576729]
[1745268616363,7.2892,137.19,137.17,0.05576729]
[1745268616879,7.33652859,137.2,137.17,19.33901054]
[1745268617059,0.04782859,137.2,137.17,19.33901054]
[1745268617259,7.33662859,137.2,137.17,19.33901054]
[1745268618065,7.289,137.19,137.17,19.33901054]
[1745268618366,7.289,137.19,137.17,12.04921054]
[1745268618761,7.2895,137.18,137.17,0.05576729]
[1745268618956,11.99344325,137.18,137.12,26.34]
[1745268619159,26.38782859,137.2,137.12,26.34]
[1745268619160,11.99344325,137.16,137.12,26.34]
[1745268619362,7.2914,137.15,137.12,26.34]
[1745268619559,11.99344325,137.14,137.09,38.33344325]
[1745268619763,7.2929,137.12,137.09,38.33344325]
[1745268619960,7.2929,137.12,137.09,26.34]
[1745268620161,7.34389235,137.12,137.09,26.38775685]
[1745268620663,7.2933,137.11,137.09,26.38775685]
[1745268621166,7.2937,137.11,137.09,26.38775685]
[1745268621865,0.05099235,137.12,137.09,26.38775685]
[1745268622467,7.34419235,137.12,137.09,26.38775685]
[1745268623167,7.34419235,137.12,137.09,33.68195685]
[1745268623468,7.34419235,137.12,137.09,26.38775685]
[1745268623865,7.34419235,137.12,137.09,33.68205685]
[1745268624065,7.2933,137.11,137.09,26.38775685]
[1745268625068,7.2933,137.11,137.09,0.04775685]
[1745268626065,7.2938,137.1,137.09,0.04775685]
[1745268626570,7.2935,137.11,137.09,0.04775685]
[1745268627271,7.2938,137.1,137.09,0.04775685]
[1745268627672,7.2935,137.11,137.09,0.04775685]
[1745268631976,18.75399939,137.1,137.03,579.0343]
[1745268632177,18.75399939,137.08,137.02,26.36]
[1745268632374,7.2962,137.06,137.02,26.36]
[1745268633083,0.05599434,137.05,137.03,0.05405347]
[1745268634383,14.80999373,137.08,137.03,0.05405347]
[1745268634582,4.47484206,137.07,137.03,0.05405347]
[1745268634780,41.16999373,137.08,137.03,0.05405347]
[1745268635083,7.2967,137.05,137.03,0.05405347]
[1745268635279,41.16999373,137.08,137.03,0.05405347]
[1745268635479,7.2969,137.05,137.03,0.05405347]
[1745268636181,7.2969,137.04,137.03,0.05405347]
[1745268638085,20.74399939,137.06,136.99,34.0394]
[1745268638283,6.47692044,137.05,136.99,34.0394]
[1745268638483,7.2983,137.02,136.99,34.0394]
[1745268639181,7.2988,137.01,136.99,26.79381037]
[1745268639483,0.04621814,137.02,136.99,0.05381037]
[1745268640084,7.2991,137.0,136.99,0.05381037]
[1745268641379,7.2987,137.01,136.99,0.05381037]
[1745268641580,0.04621814,137.02,136.99,0.05381037]
[1745268641786,18.80021753,137.02,136.99,0.05381037]
[1745268641994,7.2991,137.0,136.99,0.05381037]
[1745268642288,18.75399939,137.0,136.93,18.75399939]
[1745268642585,7.3001,136.99,136.95,7.3017]
[1745268642786,18.75399939,137.0,136.95,7.3017]
[1745268643088,18.75399939,137.0,136.96,7.3012]
[1745268643286,0.05175622,136.99,136.96,0.05244467]
[1745268644181,4.19045622,136.99,136.96,0.05244467]
[1745268645188,7.3007,136.97,136.96,0.05244467]
[1745268647286,19.32959248,136.97,136.96,0.05244467]
[1745268647588,0.05175622,136.99,136.96,12.08133715]
[1745268648089,0.05175622,136.99,136.96,0.05244467]
[1745268648687,7.35165622,136.99,136.96,0.05244467]
[1745268650391,7.35165622,136.99,136.96,7.35354467]
[1745268650989,7.35165622,136.99,136.96,0.05244467]
[1745268651493,7.3002,136.98,136.96,0.05244467]
[1745268651699,0.05175622,136.99,136.96,0.05244467]
[1745268652592,7.3001,136.98,136.96,0.05244467]
[1745268653591,7.35145622,136.99,136.96,0.05244467]
[1745268653793,0.05175622,136.99,136.96,0.05244467]
[1745268654193,0.05175622,136.99,136.97,7.3004]
[1745268654693,0.05175622,136.99,136.96,0.05244467]
[1745268654889,0.05175622,136.99,136.98,7.3001]
[1745268656596,0.05175622,136.99,136.96,26.81244467]
[1745268657096,0.05175622,136.99,136.98,7.3001]
[1745268658292,34.0578,137.03,137.0,7.299]
[1745268658494,26.76,137.03,137.0,7.299]
[1745268658798,2.0884,137.04,137.0,7.299]
[1745268659193,7.2975,137.03,137.0,7.299]
[1745268659496,7.35199342,137.03,137.0,7.3550952]
[1745268660896,7.35199342,137.03,137.0,0.0560952]
[1745268661094,7.35199342,137.03,136.97,18.7883518]
[1745268661095,18.7883518,137.02,136.93,26.76]
[1745268661293,45.5483518,137.02,136.93,26.76]
[1745268661490,7.2999,136.99,136.94,7.302]
[1745268661696,7.2999,136.99,136.93,26.76]
[1745268662089,7.2999,136.99,136.95,7.3016]
[1745268662396,0.05287627,136.97,136.95,7.35551919]
[1745268663000,0.05287627,136.97,136.96,7.3012]
[1745268663197,7.2994,137.0,136.96,7.3012]
[1745268663499,1.9594,137.01,136.96,7.3012]
[1745268664098,7.2999,136.99,136.96,7.3012]
[1745268664300,7.2999,136.99,136.95,7.35541919]
[1745268664695,0.05270817,137.0,136.95,7.35541919]
[1745268665201,7.3,136.99,136.95,7.35541919]
[1745268665598,0.05270817,137.0,136.95,7.35541919]
[1745268666198,0.05270817,137.0,136.95,0.05391919]
[1745268666400,7.301,136.97,136.95,0.05391919]
[1745268667601,7.3012,136.96,136.95,0.05391919]
[1745268668000,18.7883518,136.96,136.89,27.5]
[1745268668191,7.3029,136.93,136.9,7.3043]
[1745268668892,7.3024,136.94,136.9,7.3043]
[1745268669203,0.04945137,136.93,136.91,0.04603957]
[1745268669898,0.04945137,136.93,136.91,7.34993957]
[1745268670201,0.04945137,136.93,136.91,0.04603957]
[1745268671203,27.5,136.98,136.91,18.83439137]
[1745268671499,1.923,137.01,136.95,18.7883518]
[1745268671702,11.754898,137.02,136.98,7.3]
[1745268671898,27.5,137.03,136.97,18.7883518]
[1745268672295,27.5,137.03,137.0,7.2988]
[1745268672497,0.05398101,137.01,137.0,7.2988]
[1745268673096,0.05398101,137.01,136.99,0.04927527]
[1745268673303,0.05398101,137.01,136.99,7.34857527]
[1745268673492,0.05398101,137.01,136.99,0.04927527]
[1745268673800,0.05398101,137.01,137.0,7.2991]
[1745268677307,0.05398101,137.01,136.99,7.34857527]
[1745268677507,0.05398101,137.01,136.99,0.04927527]
[1745268678507,0.05398101,137.01,137.0,7.2991]
[1745268679106,2.0591,137.07,137.0,27.48]
[1745268679308,4.47796162,137.06,137.01,18.7883518]
[1745268679510,38.8247,137.09,137.05,7.2959]
[1745268679710,4.47622418,137.08,137.05,7.2959]
[1745268679911,38.8247,137.09,137.05,7.2959]
[1745268680105,4.47619913,137.08,137.05,7.2959]
[1745268680300,0.05555871,137.08,137.06,0.05564849]
[1745268681010,7.35035871,137.08,137.06,0.05564849]
[1745268681509,7.2953,137.07,137.06,0.05564849]
[1745268681909,11.76954767,137.07,137.06,0.05564849]
[1745268682509,11.76887126,137.07,137.06,0.05564849]
[1745268682710,7.2953,137.07,137.06,0.05564849]
[1745268684711,7.35055871,137.08,137.06,0.05564849]
[1745268684913,0.05555871,137.08,137.06,0.05564849]
[1745268685911,7.2953,137.07,137.06,0.05564849]
[1745268688116,7.35065871,137.08,137.06,0.05564849]
[1745268688409,0.05555871,137.08,137.06,0.05564849]
[1745268689114,7.2953,137.07,137.06,0.05564849]
[1745268691314,7.35055871,137.08,137.06,0.05564849]
[1745268691920,18.84391051,137.08,137.01,27.48]
[1745268692119,4.46513288,137.07,137.01,34.7783]
[1745268692320,18.7883518,137.06,137.01,34.7783]
[1745268692522,20.7226518,137.06,137.01,34.7783]
[1745268693122,0.05612851,137.05,137.02,0.05089999]
[1745268693323,7.297,137.04,137.02,0.05089999]
[1745268694224,7.2975,137.03,136.97,27.48]
[1745268694822,7.2975,137.03,136.99,7.2992]
[1745268695425,0.0465359,137.02,137.0,0.04645008]
[1745268697923,7.3447359,137.02,137.0,0.04645008]
[1745268698124,0.0465359,137.02,137.0,0.04645008]
[1745268698320,18.8348877,137.02,137.0,0.04645008]
[1745268699329,7.2994,137.0,136.97,34.7805]
[1745268699526,18.8348877,137.02,136.97,27.48]
[1745268699727,0.0465359,137.02,136.97,27.48]
[1745268699928,0.0465359,137.02,136.97,46.2683518]
[1745268700426,0.0465359,137.02,137.01,7.2985]
[1745268702426,0.0465359,137.02,137.0,7.2988]
[1745268703431,0.0465359,137.02,136.99,7.2993]
[1745268703735,0.0465359,137.02,136.98,0.05292194]
[1745268703929,0.0465359,137.02,136.98,7.35292194]
[1745268704332,7.2989,137.01,136.98,0.05292194]
[1745268705233,7.2989,137.01,136.98,7.35282194]
[1745268707134,7.2991,137.0,136.98,0.05292194]
[1745268707335,18.8348877,137.02,136.98,0.05292194]
[1745268707836,7.2996,136.99,136.98,0.05292194]
[1745268709736,0.0465359,137.02,136.98,0.05292194]
[1745268710033,0.0465359,137.02,136.98,18.84127374]
[1745268710734,0.0465359,137.02,137.01,7.2985]
[1745268719541,7.2953,137.08,137.01,27.0]
[1745268719744,4.48288224,137.07,137.02,18.7883518]
[1745268720041,29.0913,137.09,137.02,18.7883518]
[1745268720241,11.77719115,137.08,137.05,7.2964]
[1745268720443,4.48229115,137.07,137.05,7.2964]
[1745268720647,0.05077855,137.07,137.05,0.04712963]
[1745268722644,4.48161501,137.06,137.01,27.0]
[1745268722841,0.05077855,137.07,137.01,27.0]
[1745268723051,4.48183483,137.06,137.01,27.0]
[1745268723347,0.05077855,137.07,137.01,27.0]
[1745268723554,11.77808468,137.06,137.02,7.2977]
[1745268723741,7.2959,137.06,137.03,0.04666253]
[1745268724246,7.2959,137.06,137.03,7.34416253]
[1745268725648,4.48256079,137.05,137.03,7.34416253]
[1745268725846,7.2959,137.06,137.03,7.34416253]
[1745268726046,4.48256079,137.05,137.03,7.34416253]
[1745268726244,7.2959,137.06,137.03,7.34416253]
[1745268726444,4.48299891,137.05,137.03,7.34416253]
[1745268726739,7.2959,137.06,137.03,7.34416253]
[1745268726943,4.48298606,137.05,137.03,0.04666253]
[1745268727144,7.2965,137.05,137.03,0.04666253]
[1745268728951,7.2969,137.04,137.03,0.04666253]
[1745268729147,11.78087602,137.04,137.03,0.04666253]
[1745268729347,4.48397602,137.04,136.99,26.74]
[1745268729650,4.48397602,137.03,136.99,26.74]
[1745268729947,7.2994,137.0,136.97,7.3004]
[1745268730147,7.2994,137.0,136.96,26.74]
[1745268730552,7.2994,137.0,136.97,0.05147709]
[1745268730553,0.04851419,136.99,136.97,0.05147709]
[1745268731149,7.34821419,136.99,136.97,0.05147709]
[1745268732649,0.04851419,136.99,136.97,7.35207709]
[1745268732846,0.04851419,136.99,136.97,0.05147709]
[1745268733350,7.34821419,136.99,136.97,0.05147709]
[1745268734150,0.04851419,136.99,136.97,7.35197709]
[1745268734649,0.04851419,136.99,136.97,0.05147709]
[1745268734846,7.34821419,136.99,136.97,0.05147709]
[1745268735051,0.04851419,136.99,136.97,0.05147709]
[1745268735244,7.3001,136.98,136.97,0.05147709]
[1745268735745,11.78558605,136.98,136.97,0.05147709]
[1745268735944,7.34821419,136.99,136.97,0.05147709]
[1745268736552,0.04851419,136.99,136.98,7.3001]
[1745268738047,0.04851419,136.99,136.97,7.35187709]
[1745268738446,0.04851419,136.99,136.97,0.05147709]
[1745268738752,0.04851419,136.99,136.98,7.3001]
[1745268739352,0.04851419,136.99,136.97,7.35187709]
[1745268739953,0.04851419,136.99,136.98,7.3001]
[1745268741652,1.9254,137.06,136.97,18.83982889]
[1745268741850,4.48268727,137.05,137.0,18.7883518]
[1745268742050,4.48268727,137.04,137.01,26.74]
[1745268742246,1.9254,137.06,137.01,26.74]
[1745268742547,11.77902574,137.05,137.02,7.2979]
[1745268742751,7.34918411,137.05,137.02,7.34712374]
[1745268743459,4.48211864,137.04,137.02,7.34712374]
[1745268743753,7.34918411,137.05,137.02,7.34712374]
[1745268744054,4.48224915,137.04,137.02,7.34712374]
[1745268744255,7.34918411,137.05,137.02,7.34712374]
[1745268744555,7.34918411,137.05,137.03,7.2975]
[1745268744754,4.48230521,137.04,137.03,7.2975]
[1745268745057,7.34918411,137.05,137.03,7.2975]
[1745268745455,7.34918411,137.05,137.02,7.34692374]
[1745268746957,11.7791429,137.04,137.02,7.34692374]
[1745268747257,7.297,137.04,137.02,7.34692374]